bitfinex/quotes_SOLUSD_20241024
["timestamp","ask_amount","ask_price","bid_price","bid_amount"]
[1729788261248,0.12549,176.51,176.46,31.23685772]
[1729788261445,0.12549,176.51,176.44,15.2623]
[1729788261446,0.12549,176.52,176.47,31.23685772]
[1729788262141,0.12549,176.53,176.48,31.23685772]
[1729788262354,20.12549,176.53,176.48,31.23685772]
[1729788262853,0.12549,176.53,176.48,31.23685772]
[1729788263062,0.12549,176.53,176.49,31.23685772]
[1729788263244,0.12549,176.53,176.5,31.23685772]
[1729788263443,0.12549,176.55,176.51,31.23685772]
[1729788263640,20.0,176.57,176.53,31.23685772]
[1729788263859,31.23685772,176.59,176.53,31.23685772]
[1729788264159,31.23685772,176.58,176.52,31.23685772]
[1729788264363,0.12549,176.57,176.52,31.23685772]
[1729788264562,5.6625,176.6,176.54,31.23685772]
[1729788264775,5.6625,176.6,176.55,31.23685772]
[1729788264970,0.12549,176.59,176.55,31.23685772]
[1729788265143,20.0,176.59,176.55,31.23685772]
[1729788265545,21.0954,176.61,176.56,31.23685772]
[1729788265757,20.0,176.6,176.57,31.23685772]
[1729788265964,31.23685772,176.59,176.51,15.3866]
[1729788266147,5.6622,176.61,176.56,31.23685772]
[1729788266552,0.12549,176.6,176.56,31.23685772]
[1729788266868,0.12549,176.6,176.58,31.23685772]
[1729788267172,0.12549,176.62,176.57,31.23685772]
[1729788267342,36.89855772,176.63,176.57,31.23685772]
[1729788267545,36.89855772,176.63,176.52,20.0]
[1729788267868,20.0,176.62,176.57,31.23685772]
[1729788268567,0.12549,176.61,176.57,31.23685772]
[1729788268750,36.89705772,176.67,176.6,31.23685772]
[1729788268950,36.89705772,176.67,176.61,31.23685772]
[1729788269163,0.12549,176.66,176.61,31.23685772]
[1729788269369,6.1298,176.68,176.53,24.127864]
[1729788269370,37.36665772,176.68,176.62,31.23685772]
[1729788269575,31.23685772,176.69,176.63,31.23685772]
[1729788269746,5.6593,176.7,176.63,31.23685772]
[1729788269946,31.23685772,176.69,176.63,31.23685772]
[1729788270361,0.12549,176.68,176.63,31.23685772]
[1729788270555,31.23685772,176.69,176.63,31.23685772]
[1729788270955,0.12549,176.68,176.63,31.23685772]
[1729788271170,31.23685772,176.67,176.61,31.23685772]
[1729788271677,0.12549,176.66,176.61,31.23685772]
[1729788272054,0.12549,176.66,176.59,15.5505]
[1729788272055,0.12549,176.65,176.59,46.78735772]
[1729788272366,0.12549,176.62,176.57,31.23685772]
[1729788272749,0.12549,176.63,176.58,31.23685772]
[1729788273058,0.12549,176.6,176.55,31.23685772]
[1729788273460,31.23685772,176.61,176.56,31.23685772]
[1729788273668,31.23685772,176.62,176.56,31.23685772]
[1729788273869,0.12549,176.61,176.56,31.23685772]
[1729788274070,31.23685772,176.63,176.57,31.23685772]
[1729788274254,31.23685772,176.64,176.59,31.23685772]
[1729788274459,31.23685772,176.64,176.58,31.23685772]
[1729788274968,31.36234772,176.63,176.57,31.23685772]
[1729788275668,31.36234772,176.63,176.54,16.4842]
[1729788275669,31.36234772,176.63,176.58,31.23685772]
[1729788277066,31.36234772,176.63,176.57,31.23685772]
[1729788278344,14.249,176.69,176.62,31.23685772]
[1729788278345,5.6596,176.69,176.62,31.23685772]
[1729788278550,31.23685772,176.69,176.64,31.23685772]
[1729788278949,0.12549,176.68,176.64,31.23685772]
[1729788281474,0.12549,176.68,176.63,31.23685772]
[1729788283061,0.12549,176.68,176.64,31.23685772]
[1729788283671,0.12549,176.69,176.64,31.23685772]
[1729788283987,0.12549,176.69,176.65,31.23685772]
[1729788289170,0.12549,176.69,176.64,31.23685772]
[1729788289687,31.36234772,176.67,176.61,31.23685772]
[1729788290067,0.12549,176.65,176.6,31.23685772]
[1729788290507,31.36234772,176.65,176.6,31.23685772]
[1729788290663,0.12549,176.63,176.58,31.23685772]
[1729788291886,0.12549,176.63,176.59,31.23685772]
[1729788292080,0.12549,176.61,176.54,16.4842]
[1729788292284,31.36234772,176.61,176.55,31.23685772]
[1729788292887,31.36234772,176.61,176.56,31.23685772]
[1729788295192,31.36234772,176.61,176.55,31.23685772]
[1729788296895,0.12549,176.59,176.54,47.72105772]
[1729788297075,31.36234772,176.59,176.54,31.23685772]
[1729788299685,0.12549,176.59,176.55,31.23685772]
[1729788303410,0.12549,176.59,176.54,31.23685772]
[1729788305915,31.23685772,176.64,176.58,31.23685772]
[1729788306283,31.36234772,176.63,176.57,31.23685772]
[1729788306503,31.36234772,176.61,176.56,31.23685772]
[1729788306708,0.12549,176.59,176.54,31.23685772]
[1729788307087,0.12549,176.59,176.51,0.12549]
[1729788307281,0.12549,176.59,176.54,31.23685772]
[1729788307586,0.12549,176.59,176.55,31.23685772]
[1729788308086,0.12549,176.59,176.52,20.0]
[1729788308413,0.12549,176.59,176.54,31.23685772]
[1729788308906,31.23685772,176.57,176.51,51.23685772]
[1729788309112,31.23685772,176.57,176.52,31.23685772]
[1729788310195,0.12549,176.56,176.52,31.23685772]
[1729788310399,0.12549,176.56,176.44,0.2]
[1729788310400,15.74391886,176.56,176.44,21.8658]
[1729788310608,31.23685772,176.53,176.44,21.8658]
[1729788310890,31.23685772,176.53,176.47,31.23685772]
[1729788311311,0.12549,176.54,176.44,21.8658]
[1729788311312,31.23685772,176.52,176.46,31.23685772]
[1729788312309,31.36234772,176.51,176.45,31.23685772]
[1729788312491,31.36234772,176.51,176.46,31.23685772]
[1729788312694,0.12549,176.51,176.47,31.23685772]
[1729788313289,0.12549,176.51,176.46,31.23685772]
[1729788313889,31.23685772,176.55,176.49,31.23685772]
[1729788314089,5.6634,176.57,176.44,15.5076]
[1729788314299,31.23685772,176.53,176.44,15.5076]
[1729788314501,0.12549,176.51,176.46,31.23685772]
[1729788314703,0.12549,176.51,176.47,31.23685772]
[1729788314916,0.12549,176.51,176.48,31.23685772]
[1729788315094,36.90125772,176.55,176.49,31.23685772]
[1729788315296,31.23685772,176.54,176.48,31.23685772]
[1729788315489,31.23685772,176.56,176.5,31.23685772]
[1729788315798,31.23685772,176.57,176.51,31.23685772]
[1729788316196,0.12549,176.56,176.52,31.23685772]
[1729788316392,0.12549,176.56,176.51,31.23685772]
[1729788316606,46.69145772,176.59,176.53,31.23685772]
[1729788316798,36.89905772,176.61,176.55,31.23685772]
[1729788317408,0.12549,176.6,176.55,31.23685772]
[1729788317712,0.12549,176.6,176.56,31.23685772]
[1729788317919,36.89865772,176.62,176.56,31.23685772]
[1729788318217,31.23685772,176.64,176.58,15.61842886]
[1729788318418,0.97785775,176.69,176.51,15.4323]
[1729788318419,21.8962,176.68,176.62,31.23685772]
[1729788318712,0.12549,176.66,176.62,31.23685772]
[1729788319016,31.23685772,176.67,176.61,31.23685772]
[1729788319317,0.12549,176.66,176.61,31.23685772]
[1729788319614,36.89715772,176.67,176.61,31.23685772]
[1729788319918,31.23685772,176.66,176.61,31.23685772]
[1729788320918,0.12549,176.65,176.61,31.23685772]
[1729788321099,5.6606,176.66,176.61,31.23685772]
[1729788323202,36.89745772,176.66,176.6,31.23685772]
[1729788323396,36.89745772,176.66,176.56,31.23685772]
[1729788323397,31.36234772,176.62,176.56,31.23685772]
[1729788323912,0.12549,176.59,176.54,31.23685772]
[1729788324097,31.36234772,176.59,176.53,46.35275772]
[1729788324304,0.12549,176.59,176.54,31.23685772]
[1729788324701,31.23685772,176.58,176.52,31.23685772]
[1729788326621,0.12549,176.56,176.51,31.23685772]
[1729788327006,31.23685772,176.55,176.49,46.35275772]
[1729788327204,0.12549,176.54,176.49,31.23685772]
[1729788328220,31.36234772,176.54,176.49,20.0]
[1729788328393,0.12549,176.53,176.48,31.23685772]
[1729788328597,31.23685772,176.51,176.46,31.23685772]
[1729788329224,31.23685772,176.51,176.45,46.89085772]
[1729788329717,31.36234772,176.52,176.46,31.23685772]
[1729788330325,30.52152262,176.61,176.45,15.654]
[1729788330326,20.0,176.6,176.51,15.61842886]
[1729788330621,20.0,176.56,176.51,31.23685772]
[1729788331613,5.78959,176.55,176.51,31.23685772]
[1729788332421,31.23685772,176.54,176.48,31.23685772]
[1729788332624,31.23685772,176.51,176.45,46.89085772]
[1729788332813,31.23685772,176.52,176.47,31.23685772]
[1729788333920,36.90185772,176.53,176.47,31.23685772]
[1729788336325,5.665,176.53,176.48,31.23685772]
[1729788337731,31.23685772,176.54,176.48,31.23685772]
[1729788337907,37.02654772,176.55,176.49,31.23685772]
[1729788338107,31.23685772,176.54,176.49,31.23685772]
[1729788338318,31.23685772,176.54,176.48,31.23685772]
[1729788338507,31.23685772,176.53,176.47,31.23685772]
[1729788339315,31.23685772,176.54,176.48,31.23685772]
[1729788341213,31.23685772,176.55,176.49,75.13923172]
[1729788341420,31.23685772,176.57,176.51,31.23685772]
[1729788341612,31.23685772,176.56,176.5,31.23685772]
[1729788342117,31.23685772,176.54,176.48,20.0]
[1729788342432,31.23685772,176.53,176.48,20.0]
[1729788342930,31.23685772,176.54,176.48,51.23685772]
[1729788347620,31.23685772,176.54,176.48,20.0]
[1729788348315,31.23685772,176.53,176.48,20.0]
[1729788350835,31.23685772,176.55,176.49,55.13923172]
[1729788352022,14.157,176.59,176.49,55.13923172]
[1729788352023,31.23685772,176.54,176.49,23.902374]
[1729788353919,31.23685772,176.55,176.49,23.902374]
[1729788357141,31.23685772,176.53,176.48,20.0]
[1729788357316,31.23685772,176.53,176.47,20.0]
[1729788357525,31.23685772,176.52,176.46,20.0]
[1729788358120,31.23685772,176.53,176.46,51.23685772]
[1729788359142,31.23685772,176.53,176.48,20.0]
[1729788359740,31.23685772,176.52,176.48,20.0]
[1729788360036,31.23685772,176.53,176.48,20.0]
[1729788360742,31.23685772,176.54,176.48,20.0]
[1729788361323,31.23685772,176.55,176.49,23.902374]
[1729788361732,31.23685772,176.55,176.49,55.13923172]
[1729788362038,31.23685772,176.55,176.49,23.902374]
[1729788363150,31.23685772,176.54,176.49,23.902374]
[1729788363451,31.23685772,176.52,176.48,20.0]
[1729788363750,31.23685772,176.52,176.47,23.902374]
[1729788364121,31.23685772,176.49,176.43,20.0]
[1729788364727,31.23685772,176.5,176.43,51.23685772]
[1729788365951,36.90235772,176.51,176.45,20.0]
[1729788366122,0.12549,176.53,176.45,51.23685772]
[1729788366318,31.23685772,176.51,176.45,51.23685772]
[1729788368848,31.23685772,176.52,176.46,31.23685772]
[1729788369045,31.23685772,176.55,176.49,31.23685772]
[1729788369228,31.23685772,176.54,176.48,31.23685772]
[1729788369546,31.23685772,176.55,176.49,31.23685772]
[1729788369726,31.23685772,176.58,176.52,31.23685772]
[1729788370625,26.24575347,176.65,176.55,31.23685772]
[1729788370827,31.23685772,176.62,176.56,31.23685772]
[1729788371628,5.6618,176.63,176.56,31.23685772]
[1729788371832,36.89865772,176.63,176.57,31.23685772]
[1729788372341,5.6618,176.63,176.57,31.23685772]
[1729788372542,52.96185772,176.65,176.59,31.23685772]
[1729788372846,31.23685772,176.65,176.6,31.23685772]
[1729788373026,0.12549,176.65,176.6,31.23685772]
[1729788373649,11.856,176.66,176.6,31.23685772]
[1729788373830,36.89745772,176.66,176.6,31.23685772]
[1729788374034,5.6601,176.68,176.61,31.23685772]
[1729788374227,31.23685772,176.67,176.61,31.23685772]
[1729788374426,0.12549,176.66,176.61,31.23685772]
[1729788374628,0.12549,176.66,176.62,31.23685772]
[1729788374936,31.23685772,176.67,176.62,31.23685772]
[1729788375449,0.12549,176.67,176.62,31.23685772]
[1729788375756,15.7252,176.69,176.64,31.23685772]
[1729788375931,37.32845772,176.7,176.64,31.23685772]
[1729788376254,31.23685772,176.66,176.6,31.23685772]
[1729788376546,31.23685772,176.67,176.61,31.23685772]
[1729788376950,31.23685772,176.67,176.62,31.23685772]
[1729788382152,31.23685772,176.67,176.56,0.1]
[1729788382153,31.23685772,176.67,176.61,31.23685772]
[1729788384155,31.23685772,176.67,176.62,31.23685772]
[1729788385338,37.02244772,176.68,176.62,31.23685772]
[1729788386249,19.9481858,176.67,176.62,19.9481858]
[1729788387348,20.001447,176.67,176.62,19.9481858]
[1729788388237,0.0532612,176.67,176.63,19.9481858]
[1729788389252,0.0532612,176.67,176.64,19.9481858]
[1729788391566,0.0532612,176.67,176.58,79.7927432]
[1729788391567,0.0532612,176.67,176.63,19.9481858]
[1729788391736,0.0532612,176.67,176.62,19.9481858]
[1729788392066,20.001447,176.67,176.61,19.9481858]
[1729788392447,0.0532612,176.67,176.62,19.9481858]
[1729788392643,19.501447,176.68,176.62,19.9481858]
[1729788392947,19.9481858,176.68,176.63,19.9481858]
[1729788393548,25.6080858,176.69,176.63,19.9481858]
[1729788394050,21.0484,176.73,176.66,19.9481858]
[1729788394251,40.9965858,176.73,176.67,19.9481858]
[1729788394839,35.3382858,176.73,176.67,19.9481858]
[1729788395361,25.6065858,176.73,176.67,19.9481858]
[1729788396247,5.6584,176.73,176.68,19.9481858]
[1729788396435,25.6062858,176.74,176.68,19.9481858]
[1729788397042,0.12549,176.73,176.68,19.9481858]
[1729788397342,25.6062858,176.74,176.68,19.9481858]
[1729788397745,19.9481858,176.71,176.65,19.9481858]
[1729788398063,19.9481858,176.71,176.66,39.9481858]
[1729788398865,19.9481858,176.7,176.65,19.9481858]
[1729788399061,19.9481858,176.7,176.64,19.9481858]
[1729788399242,19.9481858,176.7,176.65,19.9481858]
[1729788400762,0.12549,176.69,176.64,19.9481858]
[1729788400967,19.9481858,176.7,176.62,19.9481858]
[1729788400968,19.9481858,176.68,176.62,19.9481858]
[1729788401160,19.9481858,176.66,176.61,19.9481858]
[1729788402453,25.6081858,176.68,176.62,19.9481858]
[1729788403160,5.78519,176.69,176.62,19.9481858]
[1729788403365,19.9481858,176.68,176.62,19.9481858]
[1729788403658,20.0736758,176.69,176.63,19.9481858]
[1729788407468,19.9481858,176.68,176.63,19.9481858]
[1729788408246,19.9481858,176.68,176.62,19.9481858]
[1729788409465,0.12549,176.69,176.62,19.9481858]
[1729788409780,19.9481858,176.68,176.62,19.9481858]
[1729788410263,19.9481858,176.68,176.58,21.8406]
[1729788410583,19.9481858,176.67,176.62,20.0]
[1729788410865,19.9481858,176.67,176.61,19.9481858]
[1729788411351,20.0,176.73,176.65,19.9481858]
[1729788411672,19.9481858,176.7,176.65,19.9481858]
[1729788413048,19.9481858,176.7,176.64,19.9481858]
[1729788413445,19.9481858,176.72,176.66,19.9481858]
[1729788413758,19.9481858,176.73,176.67,19.9481858]
[1729788414954,15.3768,176.77,176.67,19.9481858]
[1729788415155,0.12549,176.74,176.68,39.9481858]
[1729788415361,20.0736758,176.74,176.68,39.9481858]
[1729788415866,21.034,176.77,176.69,19.9481858]
[1729788416071,19.9481858,176.75,176.69,19.9481858]
[1729788417249,19.9481858,176.75,176.7,19.9481858]
[1729788419580,0.12549,176.75,176.7,19.9481858]
[1729788420769,5.6575,176.76,176.7,19.9481858]
[1729788421166,25.6056858,176.76,176.7,19.9481858]
[1729788421369,25.6056858,176.76,176.67,23.902374]
[1729788421575,25.6056858,176.76,176.7,19.9481858]
[1729788422065,25.6056858,176.76,176.71,19.9481858]
[1729788422450,6.2453412,176.78,176.73,19.9481858]
[1729788423755,25.7307758,176.77,176.69,0.12549]
[1729788423958,26.193627,176.78,176.72,19.9481858]
[1729788424774,0.5886412,176.78,176.73,19.9481858]
[1729788425177,6.2454412,176.78,176.7,20.0]
[1729788425373,19.9481858,176.77,176.7,20.0]
[1729788425678,19.9481858,176.77,176.71,19.9481858]
[1729788426662,20.536827,176.78,176.72,19.9481858]
[1729788426863,0.5886412,176.78,176.73,19.9481858]
[1729788427557,0.5886412,176.78,176.74,19.9481858]
[1729788428176,0.5886412,176.78,176.76,19.9481858]
[1729788428363,0.5886412,176.78,176.77,19.9481858]
[1729788428768,0.5886412,176.78,176.76,19.9481858]
[1729788428979,1.25,176.87,176.77,26.3014]
[1729788429187,1.25,176.87,176.84,19.9481858]
[1729788429360,1.25,176.87,176.85,19.9481858]
[1729788429692,1.25,176.87,176.86,39.9481858]
[1729788430158,1.25,176.87,176.86,63.8505598]
[1729788431584,1.25,176.87,176.86,43.902374]
[1729788431768,1.25,176.87,176.86,63.8505598]
[1729788433581,1.25,176.87,176.82,23.776884]
[1729788433787,1.25,176.87,176.85,20.0]
[1729788434185,1.25,176.87,176.85,39.9481858]
[1729788435170,1.25,176.87,176.8,23.876884]
[1729788435171,1.25,176.87,176.8,0.1]
[1729788435371,1.25,176.87,176.85,20.0]
[1729788435892,1.25,176.87,176.85,39.9481858]
[1729788437388,1.25,176.87,176.86,19.9481858]
[1729788441990,1.25,176.87,176.85,19.9481858]
[1729788442676,1.25,176.87,176.81,20.25098]
[1729788442870,1.25,176.87,176.84,19.9481858]
[1729788443276,1.25,176.87,176.85,20.0]
[1729788443775,1.25,176.87,176.84,19.9481858]
[1729788443974,1.25,176.87,176.78,15.9386]
[1729788443975,19.9481858,176.85,176.78,15.9386]
[1729788444177,19.9481858,176.84,176.78,15.9386]
[1729788444383,19.9481858,176.84,176.79,19.9481858]
[1729788444888,19.9481858,176.84,176.78,19.9481858]
[1729788445500,19.9481858,176.84,176.79,20.0]
[1729788445870,19.9481858,176.84,176.79,39.9481858]
[1729788446688,19.9481858,176.84,176.75,0.25098]
[1729788446881,19.9481858,176.85,176.8,20.0]
[1729788447793,16.4113,176.87,176.81,19.9481858]
[1729788447978,21.1981858,176.87,176.82,19.9481858]
[1729788448888,21.1981858,176.87,176.81,19.9481858]
[1729788449387,19.9481858,176.86,176.8,39.9481858]
[1729788449999,19.9481858,176.84,176.77,23.902374]
[1729788450300,19.9481858,176.84,176.79,20.0]
[1729788451195,19.9481858,176.83,176.78,19.9481858]
[1729788451694,19.9481858,176.82,176.76,19.9481858]
[1729788452000,19.9481858,176.81,176.75,43.7250698]
[1729788452795,19.9481858,176.81,176.76,20.0]
[1729788452988,19.9481858,176.78,176.68,15.9113]
[1729788453296,19.9481858,176.78,176.72,19.9481858]
[1729788453809,19.9481858,176.78,176.73,19.9481858]
[1729788453980,19.9481858,176.79,176.73,19.9481858]
[1729788454302,19.9481858,176.79,176.74,19.9481858]
[1729788454800,19.9481858,176.79,176.68,24.2015022]
[1729788454977,19.9481858,176.77,176.69,20.0]
[1729788455177,19.9481858,176.78,176.73,20.0]
[1729788455997,19.9481858,176.79,176.73,39.9481858]
[1729788456383,19.9481858,176.79,176.74,19.9481858]
[1729788459485,15.6101,176.83,176.75,43.8505598]
[1729788459695,19.9481858,176.82,176.77,19.9481858]
[1729788460184,19.9481858,176.81,176.76,20.0]
[1729788460583,19.9481858,176.81,176.76,39.9481858]
[1729788462315,19.9481858,176.82,176.76,39.9481858]
[1729788463180,35.5582858,176.83,176.77,19.9481858]
[1729788464188,35.5582858,176.83,176.78,19.9481858]
[1729788465101,15.6101,176.83,176.78,19.9481858]
[1729788465284,35.5582858,176.83,176.78,19.9481858]
[1729788466198,20.0736758,176.84,176.78,19.9481858]
[1729788466802,0.12549,176.84,176.79,19.9481858]
[1729788467200,20.0736758,176.84,176.78,19.9481858]
[1729788467520,6.3113,176.86,176.8,19.9481858]
[1729788467702,19.9481858,176.85,176.8,19.9481858]
[1729788469513,19.9481858,176.83,176.78,20.0]
[1729788469898,19.9481858,176.82,176.78,20.0]
[1729788471295,5.6546,176.85,176.78,20.0]
[1729788471296,19.9481858,176.83,176.78,20.0]
[1729788473213,19.9481858,176.82,176.72,20.1]
[1729788473414,19.9481858,176.82,176.77,20.0]
[1729788475918,19.9481858,176.82,176.77,39.9481858]
[1729788476293,19.9481858,176.82,176.77,20.0]
[1729788476492,19.9481858,176.81,176.75,19.9481858]
[1729788476802,19.9481858,176.81,176.76,20.0]
[1729788477414,19.9481858,176.78,176.71,15.5671]
[1729788477712,19.9481858,176.78,176.73,19.9481858]
[1729788478716,19.9481858,176.78,176.74,20.0]
[1729788478888,19.9481858,176.75,176.7,15.8735285]
[1729788479096,19.9481858,176.74,176.68,19.9481858]
[1729788479393,19.9481858,176.75,176.69,19.9481858]
[1729788480304,19.9481858,176.75,176.7,20.0]
[1729788480621,19.9481858,176.75,176.7,39.9481858]
[1729788480912,19.9481858,176.76,176.71,19.9481858]
[1729788481115,19.9481858,176.73,176.69,20.0]
[1729788481290,19.9481858,176.73,176.67,19.9481858]
[1729788481492,19.9481858,176.72,176.67,19.9481858]
[1729788481821,19.9481858,176.73,176.68,19.9481858]
[1729788482716,19.9481858,176.73,176.69,20.0]
[1729788484101,19.9481858,176.72,176.68,20.0]
[1729788485004,5.6577,176.75,176.68,20.0]
[1729788485005,19.9481858,176.73,176.68,20.0]
[1729788486215,19.9481858,176.72,176.68,20.0]
[1729788487923,19.9481858,176.71,176.67,20.0]
[1729788488219,19.9481858,176.71,176.66,20.0]
[1729788490425,5.6577,176.75,176.66,19.9481858]
[1729788490733,19.9481858,176.73,176.67,19.9481858]
[1729788491103,19.9481858,176.72,176.67,19.9481858]
[1729788491720,5.6567,176.78,176.7,19.9481858]
[1729788491925,19.9481858,176.76,176.7,19.9481858]
[1729788492317,19.9481858,176.75,176.7,19.9481858]
[1729788492820,22.9879,176.79,176.72,19.9481858]
[1729788493032,19.9481858,176.78,176.73,19.9481858]
[1729788493318,36.4257858,176.79,176.74,19.9481858]
[1729788493901,0.12549,176.8,176.75,19.9481858]
[1729788494107,19.9481858,176.82,176.77,19.9481858]
[1729788494822,19.9481858,176.82,176.76,19.9481858]
[1729788495027,19.9481858,176.8,176.71,20.0]
[1729788495326,20.0736758,176.81,176.75,19.9481858]
[1729788496215,20.0736758,176.81,176.7,24.027864]
[1729788496216,0.12549,176.81,176.76,19.9481858]
[1729788496528,20.0736758,176.81,176.76,19.9481858]
[1729788496728,1.25,176.87,176.86,66.746064]
[1729788497100,1.25,176.87,176.86,86.6942498]
[1729788500309,1.25,176.87,176.86,97.82326372]
[1729788505528,1.25,176.87,176.86,97.92326372]
[1729788507526,0.5886412,176.95,176.89,0.1]
[1729788507730,0.5886412,176.95,176.94,51.07719972]
[1729788507931,0.5886412,176.95,176.94,74.97957372]
[1729788509645,0.5886412,176.95,176.94,106.05677344]
[1729788510140,0.5886412,176.95,176.94,74.97957372]
[1729788511029,0.5886412,176.95,176.94,75.10506372]
[1729788511238,2233.41878203,177.0,176.95,43.902374]
[1729788511415,2233.41878203,177.0,176.97,31.07719972]
[1729788512009,2233.41878203,177.0,176.98,31.07719972]
[1729788512214,2233.41878203,177.0,176.97,31.07719972]
[1729788513540,2233.41878203,177.0,176.98,31.07719972]
[1729788515113,2233.41878203,177.0,176.97,31.07719972]
[1729788515315,2233.41878203,177.0,176.98,20.0]
[1729788516221,2264.49598175,177.0,176.95,54.85408372]
[1729788516422,31.07719972,176.99,176.94,31.07719972]
[1729788516643,2264.49598175,177.0,176.95,31.07719972]
[1729788517415,31.07719972,176.99,176.94,31.07719972]
[1729788517645,2233.41878203,177.0,176.95,31.07719972]
[1729788517824,2264.49598175,177.0,176.95,31.07719972]
[1729788519542,2264.49598175,177.0,176.78,5.89397039]
[1729788519543,2233.41878203,177.0,176.96,31.07719972]
[1729788519846,2233.41878203,177.0,176.96,51.07719972]
[1729788520033,2264.49598175,177.0,176.96,20.0]
[1729788520339,19.8791851,176.98,176.93,19.8791851]
[1729788520547,19.8791851,176.98,176.89,0.45098]
[1729788520548,19.8791851,176.99,176.94,39.8791851]
[1729788520724,19.8791851,176.99,176.94,20.0]
[1729788521123,19.8791851,176.97,176.88,0.25098]
[1729788521323,19.8791851,176.97,176.92,20.0]
[1729788521523,19.8791851,176.96,176.92,20.0]
[1729788521743,19.8791851,176.95,176.86,22.7182]
[1729788522041,19.8791851,176.96,176.9,19.8791851]
[1729788522354,31.06591084,176.96,176.91,31.06591084]
[1729788522650,5.6505,176.98,176.91,31.06591084]
[1729788522651,31.06591084,176.97,176.91,31.06591084]
[1729788522828,31.06591084,176.96,176.91,31.06591084]
[1729788523022,31.06591084,176.98,176.93,31.06591084]
[1729788523245,31.06591084,176.98,176.94,20.0]
[1729788523825,31.06591084,176.98,176.93,20.0]
[1729788524541,31.06591084,176.96,176.91,31.06591084]
[1729788524722,2233.41878203,177.0,176.95,31.06591084]
[1729788525121,2264.48469287,177.0,176.95,31.06591084]
[1729788525320,31.06591084,176.99,176.95,20.0]
[1729788525544,31.06591084,176.98,176.93,20.0]
[1729788525749,31.06591084,176.99,176.93,51.06591084]
[1729788526329,31.06591084,176.99,176.94,31.06591084]
[1729788526744,31.06591084,176.99,176.95,20.0]
[1729788527053,2264.48469287,177.0,176.95,51.06591084]
[1729788527749,2233.41878203,177.0,176.95,51.06591084]
[1729788528060,2233.41878203,177.0,176.96,31.06591084]
[1729788528549,2233.41878203,177.0,176.95,31.06591084]
[1729788529331,2233.41878203,177.0,176.96,54.96828484]
[1729788529832,2233.41878203,177.0,176.97,31.06591084]
[1729788531034,2233.41878203,177.0,176.97,20.0]
[1729788531851,2233.41878203,177.0,176.96,51.06591084]
[1729788535454,2233.41878203,177.0,176.98,20.0]
[1729788537742,2233.41878203,177.0,176.98,51.06591084]
[1729788538947,2233.41878203,177.0,176.99,51.06591084]
[1729788539454,2233.41878203,177.0,176.99,104.93105708]
[1729788539662,2233.41878203,177.0,176.99,104.83105708]
[1729788540440,2233.41878203,177.0,176.99,105.15654708]
[1729788541754,2233.41878203,177.0,176.99,97.14586484]
[1729788542161,2108.06865247,177.0,176.99,136.22245792]
[1729788542655,2066.07985671,177.0,176.99,136.22245792]
[1729788542838,2053.15976804,177.0,176.99,136.22245792]
[1729788543038,1608.41626018,177.0,176.99,114.49585792]
[1729788543367,1565.25518811,177.0,176.99,192.82719449]
[1729788543654,1547.02556097,177.0,176.99,192.82719449]
[1729788543841,1338.20667636,177.0,176.99,255.43616184]
[1729788544043,1273.62361866,177.0,176.99,260.78780685]
[1729788544356,1154.40189985,177.0,176.99,260.78780685]
[1729788544537,1145.15109985,177.0,176.99,260.78780685]
[1729788544737,842.85266108,177.0,176.99,260.78780685]
[1729788545045,0.5886412,177.13,177.12,0.32549]
[1729788545246,0.5886412,177.13,177.12,15.85844542]
[1729788545442,0.5886412,177.13,177.12,62.45731168]
[1729788545841,0.5886412,177.13,177.12,82.45731168]
[1729788546561,0.5886412,177.13,177.12,62.45731168]
[1729788546945,0.5886412,177.13,177.12,62.70829168]
[1729788547464,0.5886412,177.13,177.12,31.64238084]
[1729788547764,0.5886412,177.13,177.12,31.26591084]
[1729788548064,0.5886412,177.13,177.11,31.06591084]
[1729788548437,0.5886412,177.13,177.12,31.06591084]
[1729788549253,0.5886412,177.13,177.12,31.31689084]
[1729788549456,0.5886412,177.13,177.04,1.32868553]
[1729788549646,0.5886412,177.13,177.08,31.06591084]
[1729788549852,31.65455204,177.13,177.07,31.06591084]
[1729788550159,0.5886412,177.13,177.12,0.32549]
[1729788550860,0.5886412,177.13,177.12,82.70829168]
[1729788551053,0.5886412,177.13,177.12,83.83671935]
[1729788551361,6.2728,177.23,177.17,0.35098]
[1729788551665,16.2212,177.24,177.21,0.12549]
[1729788552272,16.2212,177.24,177.19,31.06591084]
[1729788552448,16.2212,177.24,177.2,31.06591084]
[1729788552762,16.2212,177.24,177.19,31.06591084]
[1729788553355,47.28711084,177.24,177.18,31.19140084]
[1729788553660,47.28711084,177.24,177.17,31.31689084]
[1729788553661,31.06591084,177.23,177.17,31.31689084]